fUSD/lending_fUSD_20250204
["ID","MTS","AMOUNT","RATE_DAILY","PERIOD"]
[351599440,1738654243839,-500.0,8.662e-05,2]
[351599441,1738654243848,-500.0,8.662e-05,2]
[351599442,1738654243857,-500.0,8.662e-05,2]
[351599443,1738654243866,-500.0,8.662e-05,2]
[351599444,1738654243874,-500.0,8.662e-05,2]
[351599445,1738654243883,-530.4559355,8.662e-05,2]
[351599446,1738654243892,-500.0,8.662e-05,2]
[351599447,1738654243906,-500.0,8.662e-05,2]
[351599448,1738654243915,-500.0,8.662e-05,2]
[351599449,1738654243927,-500.0,8.662e-05,2]
[351599450,1738654243939,-500.0,8.662e-05,2]
[351599451,1738654243953,-500.0,8.662e-05,2]
[351599452,1738654243966,-500.0,8.662e-05,2]
[351599453,1738654243975,-500.0,8.662e-05,2]
[351599454,1738654243987,-500.0,8.662e-05,2]
[351599455,1738654243996,-500.0,8.662e-05,2]
[351599456,1738654244005,-500.0,8.662e-05,2]
[351599457,1738654244015,-750.91608558,8.662e-05,2]
[351599458,1738654244028,-119.46391442,8.662e-05,2]
[351599459,1738654244037,-500.0,8.662e-05,2]
[351599460,1738654244047,-500.0,8.662e-05,2]
[351599461,1738654244056,-500.0,8.662e-05,2]
[351599462,1738654244065,-500.0,8.662e-05,2]
[351599463,1738654244075,-506.91733254,8.662e-05,2]
[351599464,1738654244083,-86.10374856,8.662e-05,2]
[351599468,1738654245847,-341.93051586,8.662e-05,2]
[351599469,1738654245858,-71.96573558,8.662e-05,2]
[351599470,1738654245867,-284.8242647,8.662e-05,2]
[351599486,1738654247734,-215.1757353,8.662e-05,2]
[351599487,1738654247743,-300.12952303,8.662e-05,2]
[351599488,1738654247752,-500.0,8.662e-05,2]
[351599489,1738654247763,-500.0,8.662e-05,2]
[351599490,1738654247772,-500.0,8.662e-05,2]
[351599491,1738654247781,-1121.64,8.662e-05,2]
[351599492,1738654247791,-500.0,8.662e-05,2]
[351599493,1738654247800,-500.0,8.662e-05,2]
[351599494,1738654247809,-500.0,8.662e-05,2]
[351599495,1738654247819,-500.0,8.662e-05,2]
[351599496,1738654247828,-500.0,8.662e-05,2]
[351599497,1738654247838,-369.25115606,8.662e-05,2]
[351599498,1738654247865,-309.7224929,8.662e-05,2]
[351599499,1738654247876,-150.86635104,8.662e-05,2]
[351599500,1738654247886,-500.0,8.662e-05,2]
[351599501,1738654247895,-500.0,8.662e-05,2]
[351599502,1738654247909,-500.0,8.662e-05,2]
[351599503,1738654247918,-500.0,8.662e-05,2]
[351599504,1738654247928,-542.45,8.662e-05,2]
[351599505,1738654247938,-147.22357796,8.662e-05,2]
[351599506,1738654247951,-529.60642204,8.662e-05,2]
[351599507,1738654247961,-500.0,8.662e-05,2]
[351599508,1738654247971,-500.0,8.662e-05,2]
[351599509,1738654247981,-500.0,8.662e-05,2]
[351599510,1738654247990,-808.64,8.662e-05,2]
[351599511,1738654248000,-500.0,8.662e-05,2]
[351599512,1738654248009,-500.0,8.662e-05,2]
[351599513,1738654248018,-500.0,8.662e-05,2]
[351599514,1738654248028,-500.0,8.662e-05,2]
[351599515,1738654248038,-500.0,8.662e-05,2]
[351599516,1738654248047,-698.82,8.662e-05,2]
[351599517,1738654248056,-542.35,8.662e-05,2]
[351599518,1738654248065,-571.14336142,8.662e-05,2]
[351599519,1738654248075,-1162.3,8.662e-05,2]
[351599520,1738654248084,-500.0,8.662e-05,2]
[351599521,1738654248093,-500.0,8.662e-05,2]
[351599522,1738654248103,-921.66,8.662e-05,2]
[351599523,1738654248112,-500.0,8.662e-05,2]
[351599524,1738654248121,-213.99367494,8.662e-05,2]
[351599525,1738654248178,-329.46718661,8.661e-05,2]
[351599526,1738654248189,-374.55,8.661e-05,2]
[351599528,1738654556208,1424.55,7.857e-05,2]
[351599529,1738654622528,1500.0,7.868e-05,2]
[351599532,1738654894206,1000.0,0.00018,60]
[351599533,1738654923461,1000.0,8.6e-05,9]
[351599535,1738654970408,1000.0,0.00018,60]
[351599536,1738655006820,162.18,7.862e-05,2]
[351599541,1738655231106,-1000.0,8.219e-05,2]
[351599542,1738655231130,-1951.29,8.219e-05,2]
[351599543,1738655231153,-250.0,8.219e-05,2]
[351599544,1738655231175,-385.23,8.219e-05,2]
[351599545,1738655231198,-150.0,8.22e-05,2]
[351599546,1738655231219,-2457.13490946,8.22e-05,2]
[351599559,1738655432088,-171.09,8.219e-05,2]
[351599560,1738655432098,-42.86509054,8.22e-05,2]
[351599561,1738655432107,-697.57633293,8.22e-05,2]
[351599562,1738655432118,-302.42366707,8.22e-05,2]
[351599563,1738655432128,-150.0,8.411e-05,2]
[351599564,1738655432138,-150.0,8.603e-05,2]
[351599565,1738655432147,-1160.441,8.617e-05,2]
[351599566,1738655432156,-150.0,8.659e-05,2]
[351599567,1738655432166,-300.0,8.659e-05,2]
[351599568,1738655432176,-500.0,8.66e-05,2]
[351599569,1738655432186,-191.03399241,8.66e-05,2]
[351599570,1738655432198,-1133.97600759,8.66e-05,2]
[351599571,1738655432208,-839.60399241,8.66e-05,2]
[351599572,1738655432219,-275.06600759,8.66e-05,2]
[351599573,1738655432229,-1203.33,8.66e-05,2]
[351599574,1738655432239,-648.63,8.66e-05,2]
[351599575,1738655432248,-500.0,8.66e-05,2]
[351599576,1738655432258,-774.95,8.66e-05,2]
[351599577,1738655432272,-500.0,8.66e-05,2]
[351599578,1738655432281,-669.71,8.66e-05,2]
[351599579,1738655432292,-1125.8,8.66e-05,2]
[351599580,1738655432301,-651.58,8.66e-05,2]
[351599581,1738655432311,-1092.37,8.66e-05,2]
[351599582,1738655432321,-762.88,8.66e-05,2]
[351599583,1738655432330,-1012.51,8.66e-05,2]
[351599584,1738655432341,-919.73,8.66e-05,2]
[351599585,1738655432351,-509.28,8.66e-05,2]
[351599586,1738655432363,-500.0,8.66e-05,2]
[351599587,1738655432374,-571.59,8.66e-05,2]
[351599588,1738655432384,-791.77,8.66e-05,2]
[351599589,1738655432395,-511.67,8.66e-05,2]
[351599590,1738655432405,-500.0,8.66e-05,2]
[351599591,1738655432414,-500.0,8.66e-05,2]
[351599592,1738655432424,-500.0,8.66e-05,2]
[351599593,1738655432435,-1114.370251,8.66e-05,2]
[351599594,1738655432446,-500.0,8.66e-05,2]
[351599596,1738655432457,-1098.506694,8.66e-05,2]
[351599598,1738655432467,-530.74,8.66e-05,2]
[351599600,1738655432478,-439.46,8.66e-05,2]
[351599602,1738655432488,-155.639737,8.66e-05,2]
[351599604,1738655432498,-500.0,8.66e-05,2]
[351599605,1738655432508,-728.97,8.66e-05,2]
[351599606,1738655432520,-500.0,8.66e-05,2]
[351599607,1738655432530,-538.02989802,8.66e-05,2]
[351599608,1738655432540,-1120.01,8.66e-05,2]
[351599609,1738655432550,-500.0,8.66e-05,2]
[351599610,1738655432560,-640.04,8.66e-05,2]
[351599611,1738655432569,-500.0,8.66e-05,2]
[351599612,1738655432579,-944.53,8.66e-05,2]
[351599613,1738655432589,-500.0,8.66e-05,2]
[351599614,1738655432599,-500.0,8.66e-05,2]
[351599615,1738655432608,-500.0,8.66e-05,2]
[351599616,1738655432618,-1024.39,8.66e-05,2]
[351599618,1738655432627,-595.24,8.66e-05,2]
[351599620,1738655432637,-500.0,8.66e-05,2]
[351599622,1738655432646,-500.0,8.66e-05,2]
[351599624,1738655432655,-1120.07,8.66e-05,2]
[351599626,1738655432665,-906.64,8.66e-05,2]
[351599628,1738655432674,-500.0,8.66e-05,2]
[351599629,1738655432685,-500.0,8.66e-05,2]
[351599631,1738655432695,-882.05,8.66e-05,2]
[351599633,1738655432704,-500.0,8.66e-05,2]
[351599635,1738655432713,-1346.89,8.66e-05,2]
[351599638,1738655432723,-500.0,8.66e-05,2]
[351599640,1738655432733,-1350.15,8.66e-05,2]
[351599643,1738655432743,-538.33,8.66e-05,2]
[351599646,1738655432752,-500.0,8.66e-05,2]
[351599648,1738655432762,-500.0,8.66e-05,2]
[351599650,1738655432773,-1388.78,8.66e-05,2]
[351599652,1738655432782,-500.0,8.66e-05,2]
[351599654,1738655432793,-619.17,8.66e-05,2]
[351599656,1738655432803,-500.0,8.66e-05,2]
[351599658,1738655432812,-500.0,8.66e-05,2]
[351599660,1738655432822,-500.0,8.66e-05,2]
[351599662,1738655432832,-1187.34,8.66e-05,2]
[351599664,1738655432842,-841.25,8.66e-05,2]
[351599666,1738655432852,-489.5278322,8.66e-05,2]
[351599668,1738655432861,-1516.41,8.66e-05,2]
[351599670,1738655432871,-725.39,8.66e-05,2]
[351599672,1738655432880,-500.0,8.66e-05,2]
[351599674,1738655432890,-500.0,8.66e-05,2]
[351599676,1738655432899,-1026.76,8.66e-05,2]
[351599678,1738655432908,-500.0,8.66e-05,2]
[351599680,1738655432918,-500.0,8.66e-05,2]
[351599682,1738655432927,-826.42,8.66e-05,2]
[351599684,1738655432936,-500.0,8.66e-05,2]
[351599686,1738655432947,-1748.36,8.66e-05,2]
[351599688,1738655432957,-500.0,8.66e-05,2]
[351599690,1738655432966,-500.0,8.66e-05,2]
[351599692,1738655432976,-391.6522582,8.66e-05,2]
[351599694,1738655432986,-500.0,8.66e-05,2]
[351599696,1738655432995,-549.9,8.66e-05,2]
[351599698,1738655433003,-500.0,8.66e-05,2]
[351599727,1738655433286,-1033.69,8.66e-05,2]
[351599730,1738655433302,-723.69,8.66e-05,2]
[351599732,1738655433311,-500.0,8.66e-05,2]
[351599734,1738655433322,-1268.13,8.66e-05,2]
[351599736,1738655433332,-500.0,8.66e-05,2]
[351599738,1738655433344,-600.0,8.66e-05,2]
[351599740,1738655433354,-951.12,8.66e-05,2]
[351599741,1738655433363,-1869.62,8.66e-05,2]
[351599744,1738655433373,-1097.48,8.66e-05,2]
[351599745,1738655433383,-500.0,8.66e-05,2]
[351599747,1738655433394,-1534.49,8.66e-05,2]
[351599749,1738655433404,-670.76,8.66e-05,2]
[351599751,1738655433414,-500.0,8.66e-05,2]
[351599754,1738655433424,-500.0,8.66e-05,2]
[351599756,1738655433437,-1170.6,8.66e-05,2]
[351599758,1738655433447,-500.0,8.66e-05,2]
[351599760,1738655433457,-1393.96,8.66e-05,2]
[351599762,1738655433467,-500.0,8.66e-05,2]
[351599764,1738655433476,-565.73,8.66e-05,2]
[351599766,1738655433486,-500.0,8.66e-05,2]
[351599768,1738655433495,-500.0,8.66e-05,2]
[351599770,1738655433505,-806.01,8.66e-05,2]
[351599771,1738655433514,-1541.89,8.66e-05,2]
[351599773,1738655433526,-1537.54,8.66e-05,2]
[351599776,1738655433535,-1520.66,8.66e-05,2]
[351599778,1738655433545,-2485.66,8.66e-05,2]
[351599780,1738655433554,-500.0,8.66e-05,2]
[351599781,1738655433564,-500.0,8.66e-05,2]
[351599783,1738655433574,-500.0,8.66e-05,2]
[351599786,1738655433583,-1352.86,8.66e-05,2]
[351599788,1738655433592,-500.0,8.66e-05,2]
[351599790,1738655433603,-1826.31,8.66e-05,2]
[351599792,1738655433613,-500.0,8.66e-05,2]
[351599793,1738655433623,-643.01,8.66e-05,2]
[351599795,1738655433632,-1124.34,8.66e-05,2]
[351599797,1738655433642,-500.0,8.66e-05,2]
[351599799,1738655433651,-953.77,8.66e-05,2]
[351599802,1738655433661,-500.0,8.66e-05,2]
[351599803,1738655433670,-2162.64,8.66e-05,2]
[351599805,1738655433680,-1506.26,8.66e-05,2]
[351599807,1738655433689,-500.0,8.66e-05,2]
[351599809,1738655433698,-500.0,8.66e-05,2]
[351599811,1738655433708,-795.1,8.66e-05,2]
[351599813,1738655433718,-536.86,8.66e-05,2]
[351599815,1738655433727,-500.0,8.66e-05,2]
[351599817,1738655433737,-935.05335199,8.66e-05,2]
[351599820,1738655433752,-514.24664801,8.66e-05,2]
[351599822,1738655433762,-372.83955199,8.66e-05,2]
[351599825,1738655433885,-987.78,8.66e-05,2]
[351599826,1738655433899,-31.11044801,8.66e-05,2]
[351599827,1738655433910,-445.36009033,8.66e-05,2]
[351599828,1738655433923,-54.63990967,8.66e-05,2]
[351599830,1738655433934,-2481.3614293,8.66e-05,2]
[351599832,1738655433947,-347.643165,8.66e-05,2]
[351599834,1738655433960,-222.3754057,8.66e-05,2]
[351599836,1738655433970,-255.28165536,8.66e-05,2]
[351599840,1738655434008,-878.65834464,8.66e-05,2]
[351599842,1738655434020,-202.05446678,8.66e-05,2]
[351599845,1738655434033,-1099.97243844,8.66e-05,2]
[351600052,1738655438022,-172.83,8.191e-05,2]
[351600053,1738655438033,-500.0,8.659e-05,2]
[351600054,1738655438043,-500.0,8.659e-05,2]
[351600055,1738655438053,-500.0,8.659e-05,2]
[351600056,1738655438063,-304.39,8.659e-05,2]
[351600057,1738655438076,-195.61,8.659e-05,2]
[351600058,1738655438086,-281.24256167,8.659e-05,2]
[351600059,1738655438251,-218.75743833,8.659e-05,2]
[351600060,1738655438261,-110.42840986,8.659e-05,2]
[351600061,1738655438276,-389.57159014,8.659e-05,2]
[351600063,1738655438285,-145.25837986,8.659e-05,2]
[351600067,1738655438332,-354.74162014,8.659e-05,2]
[351600068,1738655438343,-475.07544558,8.659e-05,2]
[351600069,1738655438355,-500.0,8.659e-05,2]
[351600070,1738655438366,-500.0,8.659e-05,2]
[351600071,1738655438376,-184.8369299,8.659e-05,2]
[351600072,1738655438387,-315.1630701,8.659e-05,2]
[351600073,1738655438398,-500.0,8.659e-05,2]
[351600074,1738655438408,-347.93692995,8.659e-05,2]
[351600075,1738655438420,-152.06307005,8.659e-05,2]
[351600076,1738655438431,-289.86692995,8.659e-05,2]
[351600078,1738655438474,-210.13307005,8.659e-05,2]
[351600080,1738655438484,-500.0,8.659e-05,2]
[351600082,1738655438493,-500.0,8.659e-05,2]
[351600084,1738655438503,-500.0,8.659e-05,2]
[351600086,1738655438513,-500.0,8.659e-05,2]
[351600088,1738655438526,-500.0,8.659e-05,2]
[351600089,1738655438535,-167.74309478,8.66e-05,2]
[351600092,1738655438545,-500.0,8.66e-05,2]
[351600094,1738655438555,-1293.1,8.66e-05,2]
[351600096,1738655438565,-500.0,8.66e-05,2]
[351600098,1738655438575,-500.0,8.66e-05,2]
[351600099,1738655438584,-1126.8,8.66e-05,2]
[351600102,1738655438594,-1057.36,8.66e-05,2]
[351600103,1738655438603,-1672.29,8.66e-05,2]
[351600105,1738655438613,-500.0,8.66e-05,2]
[351600107,1738655438623,-1162.42,8.66e-05,2]
[351600109,1738655438633,-682.15115625,8.66e-05,2]
[351600112,1738655438645,-697.31566941,8.66e-05,2]
[351600239,1738655440001,-640.01520652,8.66e-05,2]
[351600241,1738655440014,-1646.60796782,8.66e-05,2]
[351600243,1738655440025,-1342.11,8.66e-05,2]
[351600245,1738655440035,-1093.14,8.66e-05,2]
[351600247,1738655440046,-2020.63,8.66e-05,2]
[351600249,1738655440056,-1441.42,8.66e-05,2]
[351600251,1738655440067,-1633.44,8.66e-05,2]
[351600253,1738655440077,-500.0,8.66e-05,2]
[351600255,1738655440087,-622.68481471,8.66e-05,2]
[351600270,1738655440223,-64.70518529,8.66e-05,2]
[351600272,1738655440233,-527.12811822,8.66e-05,2]
[351600274,1738655440245,-450.88188178,8.66e-05,2]
[351600276,1738655440255,-1108.20953013,8.66e-05,2]
[351600677,1738655445516,-300.299957,8.561e-05,2]
[351600678,1738655445592,-875.729843,8.561e-05,2]
[351600679,1738655445602,-1437.12877272,8.603e-05,2]
[351600680,1738655445611,-231.62247172,8.66e-05,2]
[351600681,1738655445626,-577.19799815,8.66e-05,2]
[351600682,1738655445635,-2338.3,8.66e-05,2]
[351600684,1738655445645,-93.50800185,8.66e-05,2]
[351600699,1738655446250,-600.0,8.6e-05,3]
[351600700,1738655446260,-619.92199815,8.66e-05,2]
[351600701,1738655446269,-500.0,8.66e-05,2]
[351600702,1738655446279,-500.0,8.66e-05,2]
[351600703,1738655446289,-351.61419887,8.66e-05,2]
[351600704,1738655446301,-998.32580113,8.66e-05,2]
[351600705,1738655446310,-2171.67419887,8.66e-05,2]
[351600706,1738655446345,-62.20580113,8.66e-05,2]
[351600707,1738655446358,-500.0,8.66e-05,2]
[351600708,1738655446367,-426.91419887,8.66e-05,2]
[351600713,1738655787414,838.0,0.00011,30]
[351600715,1738655824055,220.12,7.787e-05,2]
[351600723,1738656047538,226.02,0.000181,60]
[351600725,1738656058401,226.02,0.000181,60]
[351600728,1738656414112,-150.94,8.005e-05,2]
[351600729,1738656414134,-0.00264236,8.218e-05,2]
[351600730,1738656434104,-300.0,8.218e-05,2]
[351600731,1738656434131,-1000.0,8.219e-05,2]
[351600732,1738656434157,-1853.72,8.219e-05,2]
[351600733,1738656434181,-250.0,8.219e-05,2]
[351600734,1738656434206,-500.0,8.219e-05,2]
[351600735,1738656434230,-500.0,8.219e-05,2]
[351600736,1738656434254,-248.46468113,8.219e-05,2]
[351600737,1738656434277,-163.95,8.219e-05,2]
[351600738,1738656434300,-809.29,8.219e-05,2]
[351600739,1738656434326,-150.0,8.219e-05,2]
[351600740,1738656434355,-1000.0,8.22e-05,2]
[351600741,1738656434377,-398.73110966,8.22e-05,2]
[351600745,1738656632104,-1000.0,8.219e-05,2]
[351600746,1738656632117,-1761.03,8.219e-05,2]
[351600747,1738656632135,-411.47000046,8.22e-05,2]
[351600748,1738656632156,-2089.79888988,8.22e-05,2]
[351600749,1738656632176,-900.0,8.22e-05,2]
[351600750,1738656632196,-5670.5398923,8.5e-05,2]
[351600751,1738656632216,-811.63653274,8.5e-05,2]
[351600752,1738656632226,-767.7196,8.559e-05,2]
[351600753,1738656632238,-739.6396624,8.559e-05,2]
[351600754,1738656632248,-2191.3754,8.561e-05,2]
[351600755,1738656632260,-8929.4133,8.561e-05,2]
[351600756,1738656632270,-811.63653274,8.58e-05,2]
[351600757,1738656632280,-600.0,8.6e-05,3]
[351600758,1738656632290,-774.73,8.6e-05,2]
[351600759,1738656632299,-774.73,8.6e-05,2]
[351600760,1738656632309,-986.37,8.6e-05,2]
[351600761,1738656632318,-774.73,8.6e-05,2]
[351600762,1738656632328,-150.0,8.657e-05,2]
[351600763,1738656632338,-972.23,8.658e-05,2]
[351600764,1738656632348,-2965.34,8.658e-05,2]
[351600765,1738656632358,-1443.5,8.658e-05,2]
[351600766,1738656632369,-1425.14,8.658e-05,2]
[351600767,1738656632378,-1602.61,8.658e-05,2]
[351600768,1738656632388,-500.0,8.658e-05,2]
[351600769,1738656632398,-500.0,8.658e-05,2]
[351600770,1738656632407,-500.0,8.658e-05,2]
[351600771,1738656632417,-187.11363385,8.658e-05,2]
[351600772,1738656632427,-1034.85,8.658e-05,2]
[351600773,1738656632436,-1713.88,8.658e-05,2]
[351600774,1738656632446,-1644.34,8.658e-05,2]
[351600775,1738656632459,-731.78,8.658e-05,2]
[351600776,1738656632469,-500.0,8.658e-05,2]
[351600777,1738656632478,-1968.22,8.658e-05,2]
[351600778,1738656632489,-1377.42,8.658e-05,2]
[351600779,1738656632500,-2445.42,8.658e-05,2]
[351600780,1738656632510,-1035.38,8.658e-05,2]
[351600781,1738656632520,-2216.58,8.658e-05,2]
[351600782,1738656632530,-1849.01,8.658e-05,2]
[351600783,1738656632539,-598.82,8.658e-05,2]
[351600784,1738656632549,-1736.07,8.658e-05,2]
[351600785,1738656632559,-1801.32,8.658e-05,2]
[351600786,1738656632569,-500.0,8.658e-05,2]
[351600787,1738656632579,-1652.58,8.658e-05,2]
[351600788,1738656632589,-656.85,8.658e-05,2]
[351600789,1738656632599,-1904.72,8.658e-05,2]
[351600790,1738656632611,-500.0,8.658e-05,2]
[351600791,1738656632620,-396.45794588,8.658e-05,2]
[351600792,1738656632633,-254.99062844,8.658e-05,2]
[351600793,1738656632677,-399.27142568,8.658e-05,2]
[351600794,1738656632687,-1290.63,8.658e-05,2]
[351600795,1738656632696,-799.83,8.658e-05,2]
[351600796,1738656632708,-1414.3,8.658e-05,2]
[351600797,1738656632718,-500.0,8.658e-05,2]
[351600798,1738656632728,-377.4717603,8.658e-05,2]
[351600809,1738656633195,-186.3982397,8.658e-05,2]
[351600810,1738656633209,-1214.75,8.658e-05,2]
[351600811,1738656633219,-967.98,8.658e-05,2]
[351600812,1738656633230,-354.04157256,8.658e-05,2]
[351600813,1738656633240,-500.0,8.658e-05,2]
[351600814,1738656633250,-1146.578297,8.659e-05,2]
[351600815,1738656633261,-157.057322,8.659e-05,2]
[351600816,1738656633271,-155.813923,8.659e-05,2]
[351600817,1738656633281,-1164.302759,8.659e-05,2]
[351600818,1738656633290,-501.00054882,8.659e-05,2]
[351600819,1738656633301,-500.0,8.659e-05,2]
[351600820,1738656633312,-593.37,8.659e-05,2]
[351600821,1738656633321,-500.0,8.659e-05,2]
[351600822,1738656633330,-500.0,8.659e-05,2]
[351600823,1738656633340,-500.0,8.659e-05,2]
[351600824,1738656633350,-1137.87,8.659e-05,2]
[351600825,1738656633359,-502.91615826,8.659e-05,2]
[351600826,1738656633368,-500.0,8.659e-05,2]
[351600827,1738656633377,-500.0,8.659e-05,2]
[351600828,1738656633386,-500.0,8.659e-05,2]
[351600829,1738656633395,-1153.19,8.659e-05,2]
[351600830,1738656633405,-500.0,8.659e-05,2]
[351600831,1738656633415,-621.6,8.659e-05,2]
[351600832,1738656633424,-500.0,8.659e-05,2]
[351600833,1738656633434,-500.0,8.659e-05,2]
[351600834,1738656633443,-500.0,8.659e-05,2]
[351600835,1738656633453,-500.0,8.659e-05,2]
[351600836,1738656633465,-500.0,8.659e-05,2]
[351600837,1738656633474,-742.66,8.659e-05,2]
[351600838,1738656633484,-500.0,8.659e-05,2]
[351600839,1738656633494,-500.0,8.659e-05,2]
[351600840,1738656633504,-500.0,8.659e-05,2]
[351600841,1738656633513,-500.0,8.659e-05,2]
[351600842,1738656633523,-500.0,8.659e-05,2]
[351600843,1738656633532,-621.56736488,8.659e-05,2]
[351600844,1738656633545,-369.05263512,8.659e-05,2]
[351600845,1738656633554,-641.8,8.659e-05,2]
[351600846,1738656633563,-262.52578538,8.659e-05,2]
[351600847,1738656633590,-241.00133798,8.659e-05,2]
[351600848,1738656633600,-500.0,8.659e-05,2]
[351600849,1738656633611,-1113.87,8.659e-05,2]
[351600850,1738656633621,-500.0,8.659e-05,2]
[351600851,1738656633631,-575.0,8.659e-05,2]
[351600852,1738656633641,-1078.89,8.659e-05,2]
[351600853,1738656633650,-624.43,8.659e-05,2]
[351600854,1738656633661,-225.19376151,8.659e-05,2]
[351600855,1738656633673,-316.96623849,8.659e-05,2]
[351600856,1738656633684,-1046.85,8.659e-05,2]
[351600857,1738656633694,-642.81,8.659e-05,2]
[351600858,1738656633704,-731.1,8.659e-05,2]
[351600859,1738656633720,-500.0,8.659e-05,2]
[351600860,1738656633731,-970.33,8.659e-05,2]
[351600861,1738656633742,-881.41,8.659e-05,2]
[351600862,1738656633754,-500.0,8.659e-05,2]
[351600863,1738656633764,-760.89,8.659e-05,2]
[351600864,1738656633773,-500.0,8.659e-05,2]
[351600865,1738656633783,-500.0,8.659e-05,2]
[351600866,1738656633794,-500.0,8.659e-05,2]
[351600867,1738656633806,-500.0,8.659e-05,2]
[351600868,1738656633816,-500.0,8.659e-05,2]
[351600869,1738656633826,-500.0,8.659e-05,2]
[351600870,1738656633837,-500.0,8.659e-05,2]
[351600871,1738656633848,-547.77,8.659e-05,2]
[351600872,1738656633858,-500.0,8.659e-05,2]
[351600873,1738656633869,-1064.78,8.659e-05,2]
[351600874,1738656633881,-500.0,8.659e-05,2]
[351600875,1738656633891,-500.0,8.659e-05,2]
[351600876,1738656633904,-500.0,8.659e-05,2]
[351600877,1738656633915,-500.0,8.659e-05,2]
[351600878,1738656633926,-898.71,8.659e-05,2]
[351600879,1738656633937,-500.0,8.659e-05,2]
[351600880,1738656633949,-500.0,8.659e-05,2]
[351600881,1738656633964,-500.0,8.659e-05,2]
[351600882,1738656633984,-500.0,8.659e-05,2]
[351600883,1738656633995,-503.50855532,8.659e-05,2]
[351600884,1738656634007,-758.78,8.659e-05,2]
[351600885,1738656634017,-500.0,8.659e-05,2]
[351600886,1738656634030,-500.0,8.659e-05,2]
[351600887,1738656634040,-219.51419103,8.659e-05,2]
[351600888,1738656634050,-500.0,8.659e-05,2]
[351600889,1738656634061,-698.6,8.659e-05,2]
[351600890,1738656634071,-371.29792101,8.659e-05,2]
[351600891,1738656634083,-500.0,8.659e-05,2]
[351600892,1738656634092,-1019.86,8.659e-05,2]
[351600893,1738656634102,-500.0,8.659e-05,2]
[351600894,1738656634112,-500.0,8.659e-05,2]
[351600895,1738656634122,-1073.34,8.659e-05,2]
[351600896,1738656634134,-500.0,8.659e-05,2]
[351600897,1738656634144,-508.62,8.659e-05,2]
[351600898,1738656634156,-500.0,8.659e-05,2]
[351600899,1738656634168,-500.0,8.659e-05,2]
[351600900,1738656634178,-500.0,8.659e-05,2]
[351600901,1738656634188,-500.0,8.659e-05,2]
[351600902,1738656634197,-500.0,8.659e-05,2]
[351600903,1738656634211,-500.0,8.659e-05,2]
[351600904,1738656634221,-500.0,8.659e-05,2]
[351600905,1738656634232,-500.0,8.659e-05,2]
[351600906,1738656634242,-500.0,8.659e-05,2]
[351600907,1738656634253,-500.0,8.659e-05,2]
[351600908,1738656634265,-500.0,8.659e-05,2]
[351600909,1738656634275,-500.0,8.659e-05,2]
[351600910,1738656634286,-500.0,8.659e-05,2]
[351600911,1738656634297,-613.38,8.659e-05,2]
[351600912,1738656634307,-500.0,8.659e-05,2]
[351600913,1738656634317,-500.0,8.659e-05,2]
[351600914,1738656634328,-500.0,8.659e-05,2]
[351600915,1738656634338,-500.0,8.659e-05,2]
[351600916,1738656634348,-500.0,8.659e-05,2]
[351600917,1738656634358,-570.43,8.659e-05,2]
[351600918,1738656634368,-500.0,8.659e-05,2]
[351600919,1738656634380,-500.0,8.659e-05,2]
[351600920,1738656634391,-905.18,8.659e-05,2]
[351600921,1738656634401,-1074.9,8.659e-05,2]
[351600922,1738656634411,-500.0,8.659e-05,2]
[351600923,1738656634420,-500.0,8.659e-05,2]
[351600924,1738656634430,-834.12,8.659e-05,2]
[351600925,1738656634440,-500.0,8.659e-05,2]
[351600926,1738656634450,-500.0,8.659e-05,2]
[351600927,1738656634463,-868.86,8.659e-05,2]
[351600928,1738656634473,-486.13019284,8.659e-05,2]
[351600929,1738656634483,-981.71,8.659e-05,2]
[351600930,1738656634492,-500.0,8.659e-05,2]
[351600931,1738656634502,-500.0,8.659e-05,2]
[351600932,1738656634512,-500.0,8.659e-05,2]
[351600933,1738656634522,-619.91,8.659e-05,2]
[351600934,1738656634531,-500.0,8.659e-05,2]